bitfinex/quotes_ETHUSD_20240811
["timestamp","ask_amount","ask_price","bid_price","bid_amount"]
[1723385484276,2.65087,2640.7,2639.6,2.705]
[1723385484277,2.65111,2640.4,2639.7,2.2914]
[1723385484478,2.65139,2640.2,2639.7,2.2914]
[1723385484644,3.0,2640.6,2639.7,4.94315]
[1723385484645,2.65122,2640.3,2639.7,4.94315]
[1723385484840,8.30197,2640.6,2639.9,5.3031]
[1723385485044,9.3963957,2640.6,2640.0,2.65151]
[1723385485252,2.65053,2641.0,2640.1,4.94272]
[1723385485253,2.65076,2640.8,2640.1,4.94272]
[1723385485577,2.65066,2640.9,2640.3,2.65116]
[1723385485876,2.65066,2640.9,2640.3,5.3023]
[1723385486194,5.65072,2640.8,2640.3,2.65114]
[1723385486339,3.0,2640.8,2640.4,0.06450506]
[1723385486583,5.65076,2640.8,2640.4,0.06450506]
[1723385486782,5.65076,2640.8,2640.3,2.65121]
[1723385486783,3.0,2640.8,2640.3,2.65121]
[1723385487023,5.65072,2640.8,2640.5,0.064437]
[1723385487227,6.215776,2640.8,2640.1,2.2914]
[1723385487517,6.215866,2640.8,2640.6,0.06436894]
[1723385487685,0.8866526,2640.7,2640.2,2.65122]
[1723385487886,6.1884026,2640.7,2640.1,2.2914]
[1723385488081,3.5375226,2640.7,2640.1,4.94278]
[1723385488327,0.65375226,2640.6,2640.1,4.94278]
[1723385488495,2.65106,2640.5,2640.1,2.2914]
[1723385488702,2.65116,2640.4,2639.8,5.10204]
[1723385489008,3.0,2640.8,2639.9,2.65155]
[1723385489009,2.651,2640.6,2639.9,2.65155]
[1723385489212,2.65103,2640.5,2640.0,2.65148]
[1723385489522,3.0,2640.8,2640.4,2.4504]
[1723385490223,3.0,2640.8,2640.4,5.10145]
[1723385490426,2.65061,2640.9,2640.4,2.4504]
[1723385490591,2.65061,2640.9,2640.4,5.1015]
[1723385490927,2.65061,2640.9,2640.4,2.4504]
[1723385492021,3.30446536,2641.0,2640.4,2.4504]
[1723385492223,30.11449358,2641.2,2640.5,3.426261]
[1723385492427,29.72031,2641.2,2640.7,2.6508]
[1723385492615,29.72031,2641.2,2640.6,2.65091]
[1723385492819,29.72031,2641.2,2640.5,2.65099]
[1723385492820,2.65041,2641.1,2640.5,5.30194]
[1723385493039,2.65041,2641.1,2640.7,0.06384275]
[1723385493194,7.3,2641.2,2640.5,0.07573691]
[1723385493394,7.3,2641.2,2640.7,2.65075]
[1723385493636,7.3,2641.2,2640.9,2.65055]
[1723385493854,29.71997,2641.6,2640.9,2.65054]
[1723385493993,9.94996,2641.6,2641.0,2.4504]
[1723385494339,9.94996,2641.6,2641.0,5.10086]
[1723385494540,9.94996,2641.6,2641.0,5.1009]
[1723385494744,9.94996,2641.6,2641.0,2.4504]
[1723385494901,2.65049,2641.1,2640.4,2.65106]
[1723385495097,2.65056,2641.0,2640.3,2.65114]
[1723385495343,2.65062,2640.9,2640.3,2.65114]
[1723385495501,0.265049,2641.0,2640.5,2.65095]
[1723385495706,0.265049,2641.0,2640.6,2.4504]
[1723385496028,3.04433139,2641.5,2641.1,2.4504]
[1723385496029,0.39429139,2641.5,2641.1,2.4504]
[1723385496230,7.3,2641.6,2641.1,2.4504]
[1723385496231,9.94991,2641.6,2641.1,2.4504]
[1723385496929,9.94991,2641.6,2641.1,5.1008]
[1723385497135,9.94991,2641.6,2641.2,0.07571872]
[1723385497136,7.3,2641.6,2641.2,0.07571872]
[1723385497314,7.3,2641.6,2641.4,2.65004]
[1723385497642,7.3,2641.6,2641.2,2.72593267]
[1723385497854,7.3,2641.6,2641.4,2.6501]
[1723385497997,7.3,2641.6,2641.4,5.30009]
[1723385498199,7.3,2641.6,2641.4,2.65004]
[1723385499300,7.3,2641.6,2641.5,5.1004]
[1723385499508,7.3,2641.6,2641.5,7.7504]
[1723385499936,7.3,2642.1,2641.7,2.6498]
[1723385500206,7.3,2642.4,2641.8,2.4504]
[1723385500455,10.271898,2642.4,2641.8,2.4504]
[1723385500948,10.271898,2642.4,2641.8,2.52609878]
[1723385501133,10.271898,2642.4,2641.9,2.64959]
[1723385501512,2.64922,2642.3,2642.0,0.06243269]
[1723385501717,0.87613933,2642.3,2642.0,0.06243269]
[1723385501935,0.87613933,2642.3,2641.8,5.17576878]
[1723385502232,3.52538933,2642.3,2641.8,2.52609878]
[1723385502429,3.52538933,2642.3,2641.9,0.06250068]
[1723385502748,3.52538933,2642.3,2641.9,5.36156068]
[1723385502749,0.87613933,2642.3,2641.9,5.36156068]
[1723385502908,7.3,2642.4,2641.9,2.71203068]
[1723385503452,9.9491,2642.4,2641.9,0.06250068]
[1723385503612,5.62113,2642.3,2641.9,0.06250068]
[1723385503947,5.62113,2642.3,2641.8,5.17573609]
[1723385503948,2.97191,2642.3,2641.8,5.17573609]
[1723385504311,2.97191,2642.3,2641.9,0.06250068]
[1723385504509,0.87612733,2642.2,2641.9,0.06250068]
[1723385505371,0.87612733,2642.2,2641.8,2.4504]
[1723385505870,0.87612733,2642.2,2641.9,5.29912]
[1723385506078,7.3,2642.4,2642.1,2.64935]
[1723385506371,7.3,2642.4,2642.2,0.06168974]
[1723385506873,7.3,2642.4,2642.0,2.52609181]
[1723385507069,7.3,2642.4,2642.3,0.06161204]
[1723385507281,19.77,2642.5,2642.1,2.64939]
[1723385507439,19.77,2642.5,2642.3,0.06161204]
[1723385507638,19.77,2642.5,2642.0,2.4504]
[1723385507878,22.419,2642.5,2642.4,0.06154408]
[1723385508176,24.960885,2642.5,2642.0,2.4504]
[1723385508351,24.960885,2642.5,2642.1,0.06174798]
[1723385508870,22.311885,2642.5,2642.1,0.06174798]
[1723385509073,19.77,2642.5,2642.1,0.06174798]
[1723385509770,2.64912,2642.4,2642.1,0.06174798]
[1723385510481,2.6492,2642.3,2642.1,0.06174798]
[1723385510635,2.64912,2642.4,2642.1,0.06174798]
[1723385510836,2.64912,2642.4,2642.0,2.4504]
[1723385511036,2.64912,2642.4,2642.2,0.06153404]
[1723385511372,2.64912,2642.4,2642.0,2.4504]
[1723385511373,5.155929,2642.4,2642.0,2.4504]
[1723385511548,5.155929,2642.4,2642.1,0.06160201]
[1723385511958,2.506809,2642.4,2642.1,0.06160201]
[1723385512285,5.155909,2642.4,2642.1,0.06160201]
[1723385513254,2.6491,2642.4,2642.1,0.06160201]
[1723385513439,2.6493,2642.2,2642.1,0.06160201]
[1723385513640,2.64925,2642.3,2641.7,4.94554]
[1723385513858,2.64925,2642.3,2642.1,0.06160201]
[1723385514084,2.64925,2642.3,2641.7,4.94554]
[1723385514559,7.3,2642.5,2641.8,2.71145596]
[1723385514878,7.3,2642.5,2642.0,2.64944]
[1723385515082,7.3,2642.5,2642.2,2.64929]
[1723385515451,7.3,2642.5,2642.3,2.3572531]
[1723385515650,19.77,2642.6,2642.3,2.3572531]
[1723385517291,7.3,2642.9,2642.4,2.64904]
[1723385517494,9.94865,2642.9,2642.4,2.64904]
[1723385517784,19.49,2643.2,2642.9,2.2958]
[1723385517989,22.41785,2643.7,2642.9,4.94434]
[1723385517990,7.3,2643.6,2642.9,4.94434]
[1723385518157,7.3,2643.6,2642.9,2.705]
[1723385518359,7.3,2643.6,2643.5,4.9438]
[1723385518572,9.94745,2644.1,2643.5,5.00419472]
[1723385519083,12.59494,2644.1,2643.5,5.00419472]
[1723385519290,2.64761,2643.9,2643.5,2.35619472]
[1723385519588,1.259494,2644.0,2643.5,2.35619472]
[1723385519799,1.259494,2644.0,2643.6,2.64787]
[1723385519960,9.94741,2644.1,2643.6,2.64787]
[1723385519961,0.8559494,2643.9,2643.6,2.64787]
[1723385520160,7.3,2644.1,2643.7,2.64771]
[1723385520380,7.3,2644.1,2643.9,2.6476]
[1723385520700,2.64656,2645.0,2644.3,2.64714]
[1723385520868,0.264656,2644.9,2644.3,2.64714]
[1723385521198,5.29354,2644.8,2644.4,0.05913553]
[1723385521358,2.64698,2644.6,2644.0,2.2958]
[1723385521558,2.64675,2644.8,2644.1,0.13470827]
[1723385521759,2.911425,2644.8,2644.2,2.64723]
[1723385521955,0.264675,2644.8,2644.3,2.78176934]
[1723385522160,0.06565434,2645.6,2644.3,2.78176934]
[1723385522161,2.64641,2645.1,2644.5,2.647]
[1723385522464,2.64641,2645.1,2644.6,0.0587407]
[1723385523092,2.6466,2644.9,2644.6,0.0587407]
[1723385523269,0.26466,2644.8,2644.4,2.2958]
[1723385523466,0.26466,2644.8,2644.0,2.2958]
[1723385523467,2.647,2644.5,2644.0,2.2958]
[1723385523665,2.64684,2644.7,2644.0,4.9433]
[1723385524061,2.647,2644.6,2644.0,4.94324]
[1723385524374,2.64696,2644.6,2644.0,2.2958]
[1723385524571,0.2647,2644.5,2644.0,4.94328]
[1723385524974,3.0,2645.0,2644.0,2.2958]
[1723385525183,2.64666,2644.9,2644.2,2.64724]
[1723385525494,0.264666,2644.8,2644.3,2.64714]
[1723385525698,0.264666,2644.8,2644.4,2.64709]
[1723385525992,3.0,2645.0,2644.4,2.64709]
[1723385526395,3.0,2645.0,2644.4,5.29413]
[1723385526595,2.6465,2645.0,2644.5,2.49702172]
[1723385526978,2.64645,2645.1,2644.5,2.49702172]
[1723385527300,0.264645,2645.0,2644.5,2.49702172]
[1723385527500,2.64667,2644.9,2644.2,2.4214]
[1723385527675,3.0,2645.3,2644.3,0.07562368]
[1723385527879,2.64651,2645.0,2644.3,2.64712]
[1723385528081,2.6466,2644.9,2644.3,5.29424]
[1723385528270,2.6466,2644.9,2644.3,2.64712]
[1723385528669,2.6466,2644.9,2644.3,5.29426]
[1723385528871,3.175908,2644.9,2644.2,2.4214]
[1723385529076,2.6466,2644.9,2644.2,2.4214]
[1723385529293,2.64681,2644.7,2644.2,2.4214]
[1723385529978,2.64681,2644.7,2644.3,0.05878239]
[1723385530289,2.64681,2644.7,2644.2,2.4214]
[1723385530290,2.64703,2644.5,2644.2,2.4214]
[1723385530469,5.29409,2644.5,2644.4,0.05871453]
[1723385530693,2.64721,2644.3,2643.9,2.4214]
[1723385531094,5.29411,2644.5,2643.9,2.4214]
[1723385531285,2.64711,2644.4,2643.9,2.4214]
[1723385531481,3.6682011,2644.5,2643.9,5.06898]
[1723385531870,7.564681,2644.6,2644.2,2.64723]
[1723385531871,7.3,2644.6,2644.2,2.64723]
[1723385532072,7.3,2644.6,2644.3,5.14419499]
[1723385532277,7.3,2644.6,2644.3,7.7157]
[1723385532477,7.3,2644.6,2644.4,0.07562242]
[1723385532779,7.3,2644.6,2644.4,2.72270242]
[1723385532988,7.3,2644.6,2644.4,0.07562242]
[1723385533712,7.3,2644.6,2644.3,5.06853]
[1723385533915,12.19,2645.4,2645.0,2.64644]
[1723385534083,27.07,2645.5,2645.1,5.06778]
[1723385534084,7.3,2645.5,2645.1,5.06778]
[1723385534489,7.3,2645.5,2645.2,2.64627]
[1723385534712,12.19,2646.0,2645.4,2.4214]
[1723385534871,7.3,2646.1,2645.8,2.4214]
[1723385535585,7.3,2646.1,2645.8,2.49698258]
[1723385536652,7.3,2646.1,2645.8,5.14267258]
[1723385536944,7.3,2646.1,2645.9,2.64553]
[1723385537103,2.64495,2646.6,2646.0,2.6455]
[1723385537311,0.264495,2646.5,2646.0,2.7210045]
[1723385537497,2.64502,2646.5,2646.0,0.0755745]
[1723385537697,2.64502,2646.5,2645.8,5.06705]
[1723385537933,2.64523,2646.3,2645.8,2.4214]
[1723385538296,5.29011,2646.5,2645.8,2.4214]
[1723385538637,3.174051,2646.5,2645.9,2.72115644]
[1723385538798,3.174051,2646.5,2645.8,5.06702]
[1723385538799,2.64504,2646.5,2645.8,5.06702]
[1723385539202,3.0,2647.0,2645.8,5.06705]
[1723385539424,2.64487,2646.7,2645.8,5.06705]
[1723385539743,2.64507,2646.5,2645.9,2.64555]
[1723385539916,2.64507,2646.5,2645.8,5.06705]
[1723385540120,2.64507,2646.5,2645.8,5.06704]
[1723385540450,2.64547,2646.1,2645.8,2.4214]
[1723385540595,2.6453,2646.2,2645.5,2.4214]
[1723385540793,5.29166,2645.7,2645.0,2.64641]
[1723385541039,2.877866,2645.7,2644.6,5.06825]
[1723385541347,2.64626,2645.3,2644.6,5.06823]
[1723385541502,5.29253,2645.3,2644.6,5.06823]
[1723385541703,2.64626,2645.3,2644.6,5.06823]
[1723385541900,2.3487,2645.7,2644.6,2.4214]
[1723385542212,2.64626,2645.3,2644.6,2.4214]
[1723385542412,2.64626,2645.3,2644.6,7.71506]
[1723385542644,2.64615,2645.4,2644.8,2.64667]
[1723385543139,2.64574,2645.8,2644.6,5.06821]
[1723385543438,2.64641,2645.1,2644.6,2.4214]
[1723385543624,2.6467,2644.8,2644.6,2.4214]
[1723385543804,2.64651,2645.0,2644.6,2.4214]
[1723385544343,12.29484,2645.4,2644.6,2.4214]
[1723385544344,7.3,2645.4,2644.8,2.64666]
[1723385544636,7.3,2645.4,2644.8,5.29328]
[1723385544938,7.3,2645.4,2644.9,0.05544375]
[1723385545112,7.3,2645.4,2645.0,2.64649]
[1723385545316,7.3,2645.4,2645.0,0.05537592]
[1723385545823,9.9461,2645.4,2645.0,0.05537592]
[1723385545995,9.9461,2645.4,2644.8,2.64662]
[1723385546199,9.9461,2645.4,2644.9,0.05544375]
[1723385546433,7.3,2645.4,2644.9,0.05544375]
[1723385546650,7.3,2645.4,2645.0,5.29296]
[1723385546863,19.77,2645.6,2645.2,5.00494]
[1723385547027,7.3,2645.7,2645.2,5.00494]
[1723385547233,7.3,2645.7,2645.2,7.65117]
[1723385547555,7.3,2645.7,2645.3,0.07559638]
[1723385548158,7.3,2645.7,2645.2,2.3587]
[1723385548330,2.64604,2645.5,2645.2,2.3587]
[1723385548531,10.940445,2645.7,2645.2,2.3587]
[1723385549059,10.940445,2645.7,2645.3,0.05517247]
[1723385549264,10.940445,2645.7,2645.2,2.3587]
[1723385549669,13.586305,2645.7,2645.2,2.3587]
[1723385549840,2.64601,2645.5,2645.2,2.3587]
[1723385550165,7.3,2645.7,2645.2,5.00498]
[1723385550382,7.3,2645.7,2645.2,5.51303798]
[1723385550668,7.3,2645.7,2645.3,0.05517247]
[1723385551464,7.3,2645.7,2645.3,2.72178927]
[1723385551646,19.49,2646.0,2645.2,2.3587]
[1723385551854,19.49,2646.0,2645.5,2.64599]
[1723385552690,19.49,2646.0,2645.6,2.6459]
[1723385552972,2.64527,2646.3,2645.7,2.3587]
[1723385552973,9.94527,2646.3,2645.7,2.3587]
[1723385553173,7.3,2646.3,2645.8,2.64564]
[1723385553342,7.3,2646.3,2645.9,2.64559]
[1723385553750,7.3,2646.3,2646.0,0.0549851]
[1723385553945,12.19,2646.6,2646.0,2.77600447]
[1723385554183,7.3,2646.7,2646.3,2.3587]
[1723385554385,19.77,2646.8,2646.3,2.43426883]
[1723385554571,22.41479,2646.8,2646.4,0.05471405]
[1723385554780,25.386256,2646.8,2646.4,0.05471405]
[1723385554980,25.386256,2646.8,2646.3,2.43426883]
[1723385555184,2.64481,2646.7,2646.3,2.43426883]
[1723385555357,3.52138133,2646.7,2646.3,2.43426883]
[1723385555761,6.16624133,2646.7,2646.4,0.05471405]
[1723385555964,3.52138133,2646.7,2646.3,2.3587]
[1723385557096,0.87657133,2646.7,2646.3,2.3587]
[1723385557401,19.77,2646.8,2646.3,5.00381]
[1723385557558,2.64466,2646.9,2646.3,5.00381]
[1723385557760,3.0,2646.8,2646.4,0.05471405]
[1723385557977,3.0,2646.8,2646.3,5.0039]
[1723385558260,9.94451,2647.0,2646.4,2.64508]
[1723385558504,9.94451,2647.0,2646.5,0.07556294]
[1723385558700,9.94451,2647.0,2646.5,0.0546463]
[1723385558998,2.64468,2646.9,2646.5,0.0546463]
[1723385559402,2.64468,2646.9,2646.4,0.07556296]
[1723385559571,7.3,2647.0,2646.4,0.07556296]
[1723385559572,2.64387,2647.7,2646.9,2.64453]
[1723385559774,2.64396,2647.6,2647.1,2.3587]
[1723385560073,2.64387,2647.7,2647.2,0.05417219]
[1723385560074,2.64401,2647.5,2647.2,0.05417219]
[1723385560266,2.64387,2647.7,2647.2,0.05417219]
[1723385560503,0.264387,2647.6,2647.2,0.05417219]
[1723385560663,2.64406,2647.5,2647.2,0.05417219]
[1723385560858,0.264387,2647.6,2647.2,0.05417219]
[1723385561086,0.264387,2647.6,2646.8,2.3587]
[1723385561087,2.64428,2647.3,2646.8,2.3587]
[1723385561284,2.64382,2647.7,2647.0,2.64443]
[1723385561285,5.2877,2647.7,2647.0,2.64443]
[1723385561461,2.64392,2647.6,2647.0,2.64443]
[1723385561700,2.64392,2647.6,2647.1,0.05364626]
[1723385561906,2.64401,2647.5,2647.1,0.05364626]
[1723385562101,3.0,2647.8,2646.8,2.3587]
[1723385562357,2.64451,2647.0,2646.8,2.3587]
[1723385562535,2.64451,2647.0,2646.4,5.00373]
[1723385562854,2.64434,2647.2,2646.6,2.64484]
[1723385563143,2.64443,2647.1,2646.5,2.645]
[1723385563445,2.64443,2647.1,2646.5,3.4599153]
[1723385563817,2.64461,2646.9,2646.4,2.3587]
[1723385564020,2.64491,2646.6,2646.4,2.3587]
[1723385564233,3.173876,2646.6,2646.1,2.3587]
[1723385564431,5.64454,2647.0,2646.1,2.3587]
[1723385564654,2.64495,2646.6,2646.1,2.3587]
[1723385564825,2.64475,2646.8,2646.1,5.00409]
[1723385565028,3.0,2646.7,2646.1,5.00409]
[1723385565226,2.6449,2646.6,2646.1,2.3587]
[1723385565849,2.64509,2646.5,2646.1,2.3587]
[1723385566161,2.64511,2646.4,2646.1,2.3587]
[1723385566357,2.64528,2646.3,2646.1,2.3587]
[1723385566524,2.64511,2646.4,2646.1,2.3587]
[1723385566842,2.64535,2646.2,2645.7,2.3862]
[1723385567007,2.64525,2646.3,2645.7,5.032]
[1723385567213,2.6455,2646.0,2645.7,2.3862]
[1723385567443,0.559006,2646.4,2645.7,2.3862]
[1723385567444,2.64537,2646.2,2645.7,2.3862]
[1723385568557,2.64547,2646.1,2645.7,2.3862]
[1723385568759,2.64552,2646.0,2645.7,2.3862]
[1723385569248,2.64547,2646.1,2645.7,2.3862]
[1723385569548,1.0504376,2646.2,2645.8,0.05402699]
[1723385569549,2.6456,2645.9,2645.8,0.05402699]
[1723385569847,2.64573,2645.8,2645.4,2.3862]
[1723385570206,2.64591,2645.6,2645.4,2.3862]
[1723385570510,2.64616,2645.4,2645.1,2.3862]
[1723385570708,5.29232,2645.4,2645.1,2.3862]
[1723385570920,2.64625,2645.3,2645.1,2.3862]
[1723385571123,7.3,2645.8,2645.1,2.3862]
[1723385571348,7.3,2645.8,2645.3,2.64613]
[1723385571664,7.3,2645.8,2645.2,2.72179688]
[1723385571665,7.3,2645.8,2645.4,2.64607]
[1723385571948,9.94571,2645.8,2645.3,0.07559604]
[1723385572151,9.94571,2645.8,2645.3,2.72179604]
[1723385572660,7.3,2645.8,2645.4,2.64608]
[1723385572822,9.94571,2645.8,2645.3,0.07559604]
[1723385573255,7.3,2645.8,2645.3,2.72175604]
[1723385573458,9.9457,2645.8,2645.3,2.72177604]
[1723385573628,9.9457,2645.8,2645.1,2.3862]
[1723385573629,2.64588,2645.7,2645.1,5.03251]
[1723385573840,2.6459,2645.6,2645.1,5.03251]
[1723385574037,2.6459,2645.6,2645.1,2.3862]
[1723385574558,14.23414638,2645.8,2645.1,2.3862]
[1723385574728,14.23416638,2645.8,2645.2,2.64628]
[1723385574933,12.59153,2645.8,2645.2,2.69711966]
[1723385576141,9.94575,2645.8,2645.2,2.69711966]
[1723385576549,12.59151,2645.8,2645.2,2.69711966]
[1723385576848,9.94575,2645.8,2645.2,2.69711966]
[1723385577037,7.3,2645.8,2645.2,3.52042093]
[1723385577238,7.3,2645.8,2645.3,2.6462]
[1723385577545,2.64581,2645.7,2645.4,0.05166859]
[1723385577745,2.6459,2645.6,2645.4,0.05166859]
[1723385577942,12.59152,2645.8,2645.2,2.64622]
[1723385578153,12.59152,2645.8,2645.5,0.05157496]
[1723385578328,12.59152,2645.8,2645.1,2.3862]
[1723385578329,2.6458,2645.7,2645.1,2.3862]
[1723385578529,2.6458,2645.7,2645.6,0.05150717]
[1723385578768,2.6458,2645.7,2645.1,5.03259]
[1723385579089,2.6458,2645.7,2645.2,0.05178161]
[1723385579745,9.94576,2645.8,2645.2,2.69802161]
[1723385579746,7.3,2645.8,2645.2,2.69802161]
[1723385579941,9.94575,2645.8,2645.2,3.47108877]
[1723385580168,7.3,2645.8,2645.2,3.47108877]
[1723385580371,7.3,2645.8,2645.3,2.6461]
[1723385580579,7.3,2645.8,2645.5,2.64592]
[1723385580872,7.3,2645.8,2645.6,2.46178939]
[1723385581077,7.3,2645.8,2645.6,2.43770071]
[1723385581237,7.3,2645.8,2645.4,5.03224]
[1723385581575,5.64555,2646.0,2645.5,0.05156851]
[1723385581576,2.6456,2645.9,2645.5,0.05156851]
[1723385581749,8.29114,2646.0,2645.5,0.05156851]
[1723385581933,3.0,2646.0,2645.5,2.69754851]
[1723385582138,7.3,2646.4,2645.6,2.46178635]
[1723385582337,7.3,2646.4,2646.0,2.3862]
[1723385582338,9.94515,2646.4,2646.0,2.3862]
[1723385582735,9.94515,2646.4,2646.1,0.0511489]
[1723385582962,2.64497,2646.6,2646.1,0.12672439]
[1723385583172,22.4148,2646.7,2646.1,3.28791183]
[1723385583373,19.77,2646.7,2646.2,2.64529]
[1723385583574,19.77,2646.7,2646.3,0.07556658]
[1723385583994,19.77,2646.7,2646.4,0.05085849]
[1723385584357,19.77,2646.7,2646.3,0.07556658]
[1723385584551,19.77,2646.7,2646.3,3.25729624]
[1723385584755,19.77,2646.7,2646.5,2.3862]
[1723385585056,19.77,2646.7,2646.6,0.05056168]
[1723385585282,19.77,2646.7,2646.5,2.25096168]
[1723385585481,19.77,2646.7,2646.6,0.04887629]
[1723385585690,19.77,2646.7,2646.5,2.25096168]
[1723385585853,19.77,2646.7,2646.6,0.04857624]
[1723385586056,2.64535,2646.2,2645.4,2.64605]
[1723385586255,2.64545,2646.1,2645.6,2.64583]
[1723385586479,2.64545,2646.1,2645.5,0.04767594]
[1723385586693,2.64545,2646.1,2645.7,0.04754679]
[1723385586898,2.64545,2646.1,2645.6,2.64585]
[1723385587208,2.64545,2646.1,2645.5,0.26936759]
[1723385587209,5.29012,2646.5,2645.9,2.64554]
[1723385587377,5.29012,2646.5,2645.7,2.69327679]
[1723385587378,2.64507,2646.5,2645.7,2.69327679]
[1723385587567,2.64525,2646.3,2646.0,0.0474175]
[1723385587766,2.64525,2646.3,2645.7,2.64573]
[1723385587997,2.64525,2646.3,2646.1,0.04740446]
[1723385588167,5.29051,2646.3,2645.8,2.2592]
[1723385588392,2.64531,2646.2,2645.8,2.2592]
[1723385588798,2.6454,2646.1,2645.8,2.2592]
[1723385588981,2.6455,2646.0,2645.5,4.90514]
[1723385589311,2.6455,2646.0,2645.5,5.660317]
[1723385589612,2.6455,2646.0,2645.5,3.014327]
[1723385589906,2.64536,2646.2,2645.5,5.660317]
[1723385590119,2.64536,2646.2,2645.5,4.90519]
[1723385590318,2.64516,2646.4,2645.8,2.64562]
[1723385590606,3.0,2646.6,2645.8,2.64562]
[1723385590607,2.6452,2646.3,2645.8,2.64562]
[1723385591085,5.6449,2646.6,2646.1,2.64539]
[1723385591409,5.28951,2646.8,2646.2,2.72086094]
[1723385591621,2.64473,2646.8,2646.3,0.07556783]
[1723385592194,2.64485,2646.7,2646.2,2.72080687]
[1723385592395,2.64485,2646.7,2646.3,0.07556687]
[1723385592599,6.548449,2646.8,2646.3,0.07556687]
[1723385592808,12.19,2647.3,2646.0,2.64542]
[1723385592809,2.64397,2647.6,2646.8,2.64464]
[1723385593012,10.897,2648.0,2647.2,2.64429]
[1723385593013,2.64356,2648.0,2647.2,2.64429]
[1723385593205,2.64356,2648.0,2647.3,0.07553833]
[1723385593206,2.64381,2647.7,2647.3,0.07553833]
[1723385593589,2.64381,2647.7,2647.4,0.046408]
[1723385594378,2.644,2647.5,2647.4,0.046408]
[1723385594578,2.64394,2647.6,2647.4,0.046408]
[1723385594782,2.64394,2647.6,2647.0,2.6444]
[1723385595017,2.64394,2647.6,2647.5,0.04617937]
[1723385595222,2.64394,2647.6,2646.9,2.2592]
[1723385595223,2.64416,2647.4,2646.9,2.2592]
[1723385596921,2.64397,2647.6,2646.9,2.2592]
[1723385597132,5.28796,2647.6,2647.0,2.64445]
[1723385597483,2.64401,2647.5,2646.9,2.2592]
[1723385597687,2.64411,2647.4,2646.9,2.2592]
[1723385597913,2.64415,2647.4,2646.9,2.2592]
[1723385598108,5.28832,2647.4,2646.9,2.2592]
[1723385598326,2.64415,2647.4,2646.9,2.2592]
[1723385599534,2.64431,2647.2,2646.9,2.2592]
[1723385599705,2.64415,2647.4,2646.9,2.2592]
[1723385599706,5.28834,2647.4,2646.9,2.2592]
[1723385599909,2.64415,2647.4,2646.9,2.2592]
[1723385600339,2.64415,2647.4,2646.9,4.90375]
[1723385600539,2.64401,2647.5,2647.0,2.64449]
[1723385601214,2.64411,2647.4,2646.9,2.2592]
[1723385601608,2.64397,2647.6,2647.0,2.64447]
[1723385601810,5.42183333,2647.6,2647.0,2.64447]
[1723385602250,2.6441,2647.4,2646.9,2.2592]
[1723385602458,2.64432,2647.2,2646.9,2.2592]
[1723385602746,2.64432,2647.2,2646.5,4.90411]
[1723385602747,2.6444,2647.1,2646.5,4.90411]
[1723385602923,2.6444,2647.1,2647.0,0.0446916]
[1723385603122,2.6445,2647.0,2646.5,4.90411]
[1723385603316,2.6445,2647.0,2646.5,2.2592]
[1723385603317,2.64462,2646.9,2646.5,2.2592]
[1723385603514,2.6445,2647.0,2646.2,4.90447]
[1723385603515,2.6447,2646.8,2646.2,4.90447]
[1723385603749,2.6447,2646.8,2646.2,2.2592]
[1723385604052,2.64491,2646.6,2646.2,2.2592]
[1723385604215,2.6447,2646.8,2646.2,2.2592]
[1723385604414,2.6447,2646.8,2646.2,4.90448]
[1723385605151,2.64483,2646.7,2646.3,0.04524286]
[1723385605320,2.64493,2646.6,2646.2,2.2592]
[1723385605531,2.64493,2646.6,2646.4,0.04517511]
[1723385606004,2.64493,2646.6,2646.2,2.2592]
[1723385606208,2.64493,2646.6,2646.5,0.04518446]
[1723385606403,2.64493,2646.6,2646.2,2.2592]
[1723385606647,2.64493,2646.6,2646.5,0.04518446]
[1723385606870,2.64493,2646.6,2646.2,2.2592]
[1723385607067,2.64493,2646.6,2646.5,0.04518446]
[1723385607238,2.64493,2646.6,2646.2,2.2592]
[1723385607850,2.64493,2646.6,2644.5,2.33109452]
[1723385607851,2.6451,2646.4,2646.3,0.04531996]
[1723385608362,2.6451,2646.4,2645.9,2.64559]
[1723385608564,2.64502,2646.5,2646.3,0.04404615]
[1723385608765,22.97038,2646.6,2646.1,2.64539]
[1723385608766,20.32541,2646.6,2646.1,2.64539]
[1723385609092,19.77,2646.6,2646.4,0.04398161]
[1723385609254,19.77,2646.6,2646.2,4.97353]
[1723385609776,19.77,2646.6,2646.4,2.6451]
[1723385609963,7.3,2646.9,2646.4,2.64504]
[1723385610168,2.6445,2647.1,2646.5,0.07556643]
[1723385610478,7.564432,2647.2,2646.7,2.6448]
[1723385610678,10.208732,2647.2,2646.6,4.97314]
[1723385610890,7.3,2647.2,2646.6,5.09260368]
[1723385611054,7.3,2647.2,2646.9,2.64455]
[1723385611441,7.3,2647.2,2647.0,0.04363624]
[1723385612854,7.3,2647.9,2647.2,2.3283]
[1723385613080,12.19,2648.1,2647.7,2.3283]
[1723385613394,9.94335,2648.2,2647.7,2.3283]
[1723385613395,7.3,2648.2,2647.8,0.04309463]
[1723385613680,22.4132,2648.3,2647.8,0.04309463]
[1723385613885,2.64342,2648.1,2647.7,2.3283]
[1723385614045,2.64351,2648.0,2647.7,2.3283]
[1723385615506,2.64351,2648.0,2646.0,4.58645728]
[1723385615507,2.64395,2647.6,2647.3,2.3283]
[1723385615686,2.64367,2647.9,2647.3,4.97243]
[1723385616023,2.64373,2647.8,2647.3,4.97243]
[1723385616192,12.58715,2648.0,2647.4,2.64409]